Cogmind - Beta 16 @@@ ROGUE MODE // 2025.12.01 @ 16:50:15 Player: AngelSpirit Result: Destroyed by Y-54 Guardian with Gatling Laser Performance ------------- Evolutions (0) 0 Regions Visited (3) 600 Robots Destroyed (20) 100 Value Destroyed (682) 682 Prototype IDs (0) 0 Alien Tech Used (0) 0 Bonus (0) 0 TOTAL SCORE: 1382 Bonus ------- None Cogmind --------- Core Integrity 0/250 Matter 256/300 Energy 125/150 System Corruption 0% Temperature Cool (78) Movement Rolling (95) Ox1 Location -7/Recycling Parts ------- > --- POWER (1) -------- Micro Nuclear Core > --- PROPULSION (2) --- Wheel Wheel > --- UTILITY (2) ------ Scrap Shield > --- WEAPON (2) ------- Gatling Laser Slug Cannon > --- INVENTORY (5) ---- Subdweller Monowheel High-capacity Matter Pod (200) Layered Light Armor Plating Subdweller Beam Cannon Subdweller Shrapnel Launcher Peak State ------------ > --- POWER ------------ Micro Nuclear Core > --- PROPULSION ------- Wheel Wheel > --- UTILITY ---------- Scrap Shield > --- WEAPON ----------- Gatling Laser Slug Cannon > --- INVENTORY -------- Subdweller Monowheel High-capacity Matter Pod Layered Light Armor Plating Subdweller Beam Cannon Subdweller Shrapnel Launcher [Rating: 19] Favorites ----------- Power Ion Engine Engine Ion Engine Power Core Micro Nuclear Core Propulsion Compact Wheel Wheel Compact Wheel Utility Small Storage Unit Device Subdweller Optics Storage Small Storage Unit Protection Scrap Shield Weapon Assault Rifle Energy Gun Subdweller Laser Ballistic Gun Assault Rifle Ballistic Cannon Slug Cannon Launcher Subdweller Shrapnel Launcher Build | -11 -10 -10 -7 ------- Run | Yrd Mat Sub Rec Slots Evolved . | . . . . Power . | . . . . Propulsion . | . . . . Utility . | . . . . Weapon . | . . . . Parts Attached 29 | 6 . 21 2 Power 7 | 1 . 5 1 Engine 6 | 1 . 5 . Core 1 | . . . 1 Reactor . | . . . . Propulsion 5 | 2 . 3 . Treads . | . . . . Leg . | . . . . Wheel 5 | 2 . 3 . Hover . | . . . . Flight . | . . . . Utility 6 | 1 . 5 . Device 3 | . . 3 . Storage 1 | 1 . . . Processor . | . . . . Hackware . | . . . . Protection 2 | . . 2 . Artifact . | . . . . Weapon 11 | 2 . 8 1 Energy Gun 2 | . . 1 1 Energy Cannon . | . . . . Ballistic Gun 6 | 2 . 4 . Ballistic Cannon 2 | . . 2 . Launcher 1 | . . 1 . Special Weapon . | . . . . Impact Weapon . | . . . . Slashing Weapon . | . . . . Piercing Weapon . | . . . . Special Melee Weapon . | . . . . Unidentified Prototypes . | . . . . Parts Lost 4 | . . 4 . Power . | . . . . Propulsion 2 | . . 2 . Utility . | . . . . Weapon 2 | . . 2 . Highest Loss Streak 3 | . . 3 . To Critical Strikes 1 | . . 1 . Average Backups 5 | . 4 6 4 Power . | . . . . Propulsion 1 | . 1 1 1 Utility 1 | . . 1 1 Weapon 2 | . 2 2 2 Tool/Special . | . . . . Unused Backups 9 | . 1 3 5 Power . | . . . . Propulsion 2 | . . 1 1 Utility 3 | . . . 3 Weapon 4 | . 1 2 1 Tool/Special . | . . . . Average Slot Usage (%) 91 | . 85 94 73 Engine 12 | . 14 14 2 Wheel 27 | . 28 27 28 Device 7 | . . 9 . Storage 9 | . 14 9 . Protection 4 | . . 4 14 Energy Gun 5 | . . 5 14 Ballistic Gun 17 | . 28 18 . Ballistic Cannon 3 | . . 3 14 Peak Build Rating 19 | 6 6 15 19 Average Rating 10 | 4 6 11 15 On Entrance 6 | . 6 6 14 Avg Prop Armor Cover (%) . | . . . . Naked Turns . | . . . . Heaviest Build 34 | 14 14 34 34 Greatest Support 32 | 32 32 32 20 Greatest Overweight (x) 1 | . . 1 1 Average Overweight (x) . | . . . 1 Largest Inventory Capacity 8 | 8 8 8 5 Average Capacity 6 | 7 8 7 5 Most Carried 8 | 1 7 8 5 Average Carried 6 | . 4 6 4 Final Capacity 8 | 8 8 5 5 Final Carried 7 | 1 7 5 5 Class Distribution -------------------- 69% | Mutant 25% | Subdweller-Mutant 5% | Scavenger-Mutant Dominant Class ---------------- Mutant | -10/Materials Mutant | -10/Subcaves Mutant | -7/Recycling Resources | -11 -10 -10 -7 ----------- Run | Yrd Mat Sub Rec Matter Collected 1100 | 260 36 804 . Remotely . | . . . . Salvage Created 647 | . 150 395 102 Parts 35 | . 8 23 4 Haulers Intercepted . | . . . . Recyclers Shooed 2 | . 1 . 1 Parts Field Recycled . | . . . . Retrieved Matter . | . . . . Parts Self-Destructed 18 | . . 18 . Prevented . | . . . . Parts Restored . | . . . . Kills | -11 -10 -10 -7 ------- Run | Yrd Mat Sub Rec Combat Hostiles Destroyed 15 | . 1 13 1 Guns 10 | . 1 8 1 Cannons 3 | . . 3 . AOE 2 | . . 2 . Classes Destroyed 8 | . 4 3 1 Worker 1 | . 1 . . Recycler 2 | . 1 . 1 Operator 1 | . 1 . . Turret 1 | . . 1 . Grunt 2 | . 1 1 . Sentry 1 | . . 1 . Programmer 1 | . . . 1 Subdweller 11 | . . 11 . Best Kill Streak 3 | . 3 2 1 Combat Bots Only 2 | . 1 2 1 Max Kills in Single Turn 1 | . 1 1 1 Gunslinging . | . . . . Exploded 1 | . . 1 . Melee . | . . . . Uniques/NPCs Destroyed . | . . . . Combat | -11 -10 -10 -7 -------- Run | Yrd Mat Sub Rec Hostile Shots Fired 96 | . . 84 12 Missed 36 | . . 34 2 Hits 60 | . . 50 10 Projectile 60 | . . 50 10 AOE 2 | . . 2 . Critical Strikes 3 | . . 3 . Damage Taken 1186 | . . 1115 71 Core 252 | . . 240 12 Absorbed by Shields . | . . . . Core Remaining (%) 100 | 100 . . . Volleys Fired 87 | . 7 76 4 Largest 2 | . 2 2 2 Hottest 120 | . 40 100 120 Shots Fired 153 | . 14 131 8 Gun 131 | . 14 113 4 Cannon 18 | . . 14 4 Launcher 4 | . . 4 . Special . | . . . . Kinetic 120 | . 14 102 4 Thermal 33 | . . 29 4 Explosive . | . . . . Electromagnetic . | . . . . Robot Hit Streak 17 | . 2 17 11 Robot Miss Streak 3 | . 2 3 3 Penetration Max . | . . . . Secondary Targets . | . . . . Shots Hit Robots 86 | . 6 75 5 Core Hits 38 | . 6 27 5 Critical Kills . | . . . . Critical Parts Destroyed . | . . . . Critical Strikes 3 | . . 2 1 Destroy 3 | . . 2 1 Melee Attacks . | . . . . Impact . | . . . . Slashing . | . . . . Piercing . | . . . . Sneak Attacks . | . . . . Combat Hostiles . | . . . . Follow-up Attacks . | . . . . Damage Inflicted 1702 | . 85 1441 176 Guns 1159 | . 85 963 111 Cannons 319 | . . 254 65 Explosions 224 | . . 224 . Melee . | . . . . Ramming . | . . . . Kinetic 1214 | . 85 1064 65 Thermal 488 | . . 377 111 Explosive . | . . . . Electromagnetic . | . . . . Impact . | . . . . Slashing . | . . . . Piercing . | . . . . Highest Corruption . | . . . . Average Corruption . | . . . . Corruption Purged . | . . . . Corruption Blocked . | . . . . Overload Shots . | . . . . Overflow Damage 9 | . . . 9 Projectiles 9 | . . . 9 Explosions . | . . . . Melee . | . . . . Knockbacks 4 | . . 4 . Impact . | . . . . Kinetic 4 | . . 4 . Secondary . | . . . . Self-Inflicted Damage 36 | . . 36 . Shots 1 | . . 1 . Rammed . | . . . . Targets Rammed . | . . . . Kicked . | . . . . Crushed . | . . . . Highest Temperature 90 | . . 10 90 Average Temperature 23 | . . 4 39 Received Heat Transfer 234 | . . 210 24 Siege Activations . | . . . . Martial Activations . | . . . . Shielding Activations . | . . . . Robots Disrupted . | . . . . Combat Hostiles . | . . . . Robots Corrupted . | . . . . Combat Hostiles . | . . . . Parts Fried . | . . . . Impact Corruptions . | . . . . Robots Melted . | . . . . Combat Hostiles . | . . . . Parts Melted 3 | . . 1 2 Heat Transferred 675 | . . 450 225 Parts Sabotaged . | . . . . Parts Stolen . | . . . . Parts Stripped . | . . . . Power Chain Reactions . | . . . . Alert | -11 -10 -10 -7 ------- Run | Yrd Mat Sub Rec Maximum Alert Level . | . . . . Low Security (%) 100 | 100 100 . 100 Level 1 . | . . . . Level 2 . | . . . . Level 3 . | . . . . Level 4 . | . . . . Level 5 . | . . . . High Security . | . . . . Max Security . | . . . . Peak Influence 35 | . 35 . 21 Initial . | . . . . Average 4 | . 6 . 3 Influence Increases 235 | . 45 135 55 Destroy 0b10 Robot/C 100 | . 20 60 20 Destroy 0b10 Robot/NC 20 | . 15 . 5 Destroy Leader 10 | . 10 . . Successful Hack 14 | . . . 14 Disable Machine 15 | . . . 15 Destroy Structure 1 | . . . 1 Lose Combat Pursuer 75 | . . 75 . Influence Decreases 214 | . 45 135 34 Time Decay 204 | . 45 125 34 Lost Part 10 | . . 10 . Squads Dispatched 2 | . 2 . . Investigation . | . . . . Extermination . | . . . . Reinforcement 2 | . 2 . . Assault . | . . . . Garrison . | . . . . Intercept . | . . . . Searches Triggered . | . . . . Construction Impeded . | . . . . Haulers Reinforced . | . . . . Active Scanning Responses . | . . . . Cargo Convoy Interrupts . | . . . . Stealth | -11 -10 -10 -7 --------- Run | Yrd Mat Sub Rec Distress Signals 1 | . 1 . . Communications Jammed . | . . . . Distress Signals . | . . . . Times Spotted 31 | . 7 22 2 Peak Tracking Total 3 | . 3 3 2 Tactical Retreats 2 | . . 2 . Traps | -11 -10 -10 -7 ------- Run | Yrd Mat Sub Rec Traps Triggered 1 | . . 1 . Indirectly . | . . . . Trap Hack Attempts . | . . . . Triggered . | . . . . Disarmed . | . . . . Reprogrammed . | . . . . Reused . | . . . . Traps Extracted . | . . . . Installed 4 | . . 4 . Triggered . | . . . . Most Traps Carried 2 | . . 2 . Machines | -11 -10 -10 -7 ---------- Run | Yrd Mat Sub Rec Machines Disabled 2 | . . 1 1 Max in Single Turn 1 | . . 1 1 Machines Repaired . | . . . . Machines Dismantled . | . . . . Machines Sabotaged . | . . . . Overloaded Fab Kills . | . . . . Hacking | -11 -10 -10 -7 --------- Run | Yrd Mat Sub Rec Machines Accessed 10 | . 2 3 5 Terminals 4 | . 2 . 2 Fabricators . | . . . . Repair Stations . | . . . . Recycling Units 3 | . . . 3 Scanalyzers . | . . . . Garrison Access . | . . . . Total Hacks 28 | . 10 7 11 Successful 17 | . 4 7 6 Failed 11 | . 6 . 5 Catastrophic 1 | . . . 1 Database Lockouts . | . . . . Manual 11 | . 8 1 2 Terminals 15 | . 10 . 5 Fabricators . | . . . . Repair Stations . | . . . . Recycling Units 6 | . . . 6 Scanalyzers . | . . . . Garrison Access . | . . . . Terminal Hacks 9 | . 1 7 1 Record 5 | . . 5 . Open Door 1 | . . 1 . Terminal Index 1 | . 1 . . Zone Layout 1 | . . . 1 Release Object 1 | . . 1 . Fabricator Hacks . | . . . . Repair Station Hacks . | . . . . Recycling Unit Hacks 5 | . . . 5 Report Inventory 3 | . . . 3 Retrieve Components 2 | . . . 2 Scanalyzer . | . . . . Garrison Access Hacks . | . . . . Unauthorized Hacks 3 | . 3 . . Terminals 3 | . 3 . . Track 1 | . 1 . . Botnet 2 | . 2 . . Fabricators . | . . . . Repair Stations . | . . . . Recycling Units . | . . . . Scanalyzers . | . . . . Garrison Access . | . . . . Data Cores Recovered . | . . . . Used . | . . . . Hacking Detections 5 | . 2 . 3 Full Trace Events 2 | . . . 2 Feedback Events . | . . . . Feedback Blocked . | . . . . Robot Schematics Acquired . | . . . . Robots Built . | . . . . Authchips . | . . . . Time . | . . . . Total Robot Build Rating . | . . . . Part Schematics Acquired . | . . . . Parts Built . | . . . . Authchips . | . . . . Time . | . . . . Total Part Build Rating . | . . . . Part Studies Acquired . | . . . . Parts Repaired . | . . . . Time . | . . . . Parts Recycled . | . . . . Recycled Matter . | . . . . Retrieved Matter . | . . . . Retrieved Components 4 | . . . 4 Parts Scanalyzed . | . . . . Part Schematics Acquired . | . . . . Parts Damaged . | . . . . Bothacking | -11 -10 -10 -7 ------------ Run | Yrd Mat Sub Rec Used RIF Installer . | . . . . Robots Hacked . | . . . . Non-combat . | . . . . Combat . | . . . . Robot Hacks Applied . | . . . . Relay Couplers Released . | . . . . Fabnet Peak Effective % . | . . . . Robots Rewired . | . . . . Allies Hacked . | . . . . Hacks Repelled . | . . . . Allies | -11 -10 -10 -7 -------- Run | Yrd Mat Sub Rec Total Allies . | . . . . Largest Group . | . . . . Highest-Rated Group . | . . . . Highest-Rated Ally . | . . . . Total Orders . | . . . . Ally Attacks . | . . . . Total Damage . | . . . . Kills . | . . . . Allies Corrupted . | . . . . Allies Melted . | . . . . Intel | -11 -10 -10 -7 ------- Run | Yrd Mat Sub Rec Active Infowar (turns) 373 | . . 373 . Optics 373 | . . 373 . Robot Analysis Total . | . . . . Derelict Logs Recovered 3 | . . 3 . Drone Launches . | . . . . Drone Recoveries . | . . . . Exploration | -11 -10 -10 -7 ------------- Run | Yrd Mat Sub Rec Turns Passed 2086 | 43 220 1607 216 Spaces Moved 1685 | 34 167 1289 195 Core 1 | 1 . . . Treads . | . . . . Legs . | . . . . Wheels 1684 | 33 167 1289 195 Hover . | . . . . Flight . | . . . . Fastest Speed 50 | 50 100 80 95 Average Speed 97 | 98 100 98 95 Slowest Speed 100 | 100 100 100 95 Overloaded Moves . | . . . . Propulsion Burnouts . | . . . . Robots Hopped . | . . . . Potential Cave-ins . | . . . . Cave-ins Triggered . | . . . . Exploration Rate (%) 36 | 3 39 65 39 Regions Visited 3 Branch Regions 2 Pre-discovered Areas 1 | . . 1 . Known Exits Taken . | . . . . Unknown Exits Taken 3 | 1 1 1 . Scrap Searched 12 | . . 12 . Spaces Dug 1 | . . 1 . Terrain Destroyed 21 | . . 21 . Melee . | . . . . Projectile 2 | . . 2 . AOE 19 | . . 19 . Terrain Rammed . | . . . . Walls Destroyed . | . . . . Machines Disabled . | . . . . Actions | -11 -10 -10 -7 --------- Run | Yrd Mat Sub Rec Total 1967 | 40 206 1504 217 Wait 101 | . 25 75 1 Move 1682 | 33 166 1288 195 Hop . | . . . . Pick Up 22 | 1 7 13 1 Fast Attach 18 | 6 . 10 2 Attach 5 | . . 5 . Detach 2 | . . 2 . Swap 8 | . . 8 . Drop 27 | . 1 23 3 Fire 87 | . 7 76 4 Melee . | . . . . Ram . | . . . . Kick . | . . . . Crush . | . . . . Escape Stasis . | . . . . Rewire 11 | . . . 11 Trap 4 | . . 4 . Miscellaneous . | . . . . Route ------- -11/Scrapyard -10/Materials (discovered 3 exits: [*Mat] / [*Min] / *Sub) -10/Subcaves -7/Recycling History --------- Turn | Location | Event 27 | -11/Scrapyard | Discovered new exit (range 16) 44 | -11/Scrapyard | Entered Materials 45 | -10/Materials | Met a group of wandering Federalists 183 | -10/Materials | Discovered new exit (range 14) 223 | -10/Materials | Discovered new exit (range 12) 261 | -10/Materials | Discovered new exit (range 5) 264 | -10/Materials | Entered Subcaves 265 | -10/Subcaves | Continued accompanying wandering Federalists (4) 265 | -10/Subcaves | Approached by a straggling Scientist 276 | -10/Subcaves | Discovered new exit (range 10) 323 | -10/Subcaves | Build established: Mutant 326 | -10/Subcaves | Lost 4 allies 425 | -10/Subcaves | Learned Materials terminal intel 724 | -10/Subcaves | Shifting Twisted Machinery released Piercing Trap 725 | -10/Subcaves | Shifting Twisted Machinery released Sub. Laser 874 | -10/Subcaves | Visited Clippyterm 877 | -10/Subcaves | Learned location of Extension (-6) 909 | -10/Subcaves | Curiously followed by a Cobbler waking with a query about "LVR3C" 1109 | -10/Subcaves | Shifting Twisted Machinery released Sub. Beam Cannon 1110 | -10/Subcaves | Shifting Twisted Machinery released Battle Rifle 1305 | -10/Subcaves | Disturbed a concealed Subdweller 1336 | -10/Subcaves | Core integrity fell below 50% 1358 | -10/Subcaves | Core integrity fell below 20% 1386 | -10/Subcaves | Lost 3 parts (2n1w) 1423 | -10/Subcaves | Learned Materials terminal intel 1668 | -10/Subcaves | Build established: Subdweller-Mutant 1701 | -10/Subcaves | Disturbed a concealed Subdweller 1871 | -10/Subcaves | Entered Recycling 2087 | -7/Recycling | Destroyed by Y-54 Guardian with Gatling Laser Last Messages --------------- 01902_ Tractor Beam melted. 01902_ R-06 Scavenger destroyed. 01902_ Recycling Unit disabled. 01905_ Destroyed Tractor Beam. 01936_ Connecting with Terminal... >>Layout(Zone) Retrieving Zone 1Y layout... Downloaded map data. 01981_ Connecting with Terminal... 02008_ Connecting with Recycling Unit... >>Recycling(Report) Matter reserves: 0 Inventory: Empty 02066_ Attempting to rewire Y-54 Guardian. 02075_ P-60 Hacker springs to life. 02075_ Attempting to rewire Y-54 Guardian. 02078_ P-60 Hacker destroyed. 02082_ Acquired Mic. Nuclear Core. 02084_ Y-54 Guardian suffers critical hit (Destroy). Map ----- +----------------------------------------------------+ | ???????????????????????????# | | ??????????????????????????# | | ????????????????????????????###### | | ???????##??###???#?? ????????????# | | ???????# ?? #?? #???????????# | | ???????# """ """ #?? #???????????# | | ???????# """ """ #?? #???????????# | | ???????# """ """ #? #???????????# | | ???????# """ #? #???????????# | | ???????# """ +? +???????????? | | ???????? #? #?????????### | | ???????? ??# +?????????# | | ????????#+##+##### #???????### | | ????????# #???????#]] | | ??####### ##+###+#######??# ] | | ??# # # #??#]] | | ??# ![! + + ###### | | ??# ] # #### + | | ??#! # #??# ###### | | ??# + #??# #????# | | ??# = # #??# #????# | | ??#! !%?# #??# #????# | | ??# ?# #??# ###### | | ??# # #??# + | | ??#/ !#=#??# # | | ??# [ %Y@#??# # | | ??# Y= |###??# + | | ??#= ?????## ## ############### | | ??#####???????######?????????????? | | ?????????????????????????????????? | | ?????????????????????????????????? | | ?????????????????????????????????? | | | | | | | | | | | | | | | | | | | | | | | | | | | | | | | | | | | | | +----------------------------------------------------+ Best States ------------- Heat Dissipation 39 Energy Generation 15 Energy Capacity 250 Matter Stores 300 Matter Capacity 300 Sight Range 21 Terrain Scan Density 10 Armor Coverage 800 Evasion (%) 44 Item Schematics ----------------- None Robot Schematics ------------------ None Fabricated ------------ Nothing Repaired ---------- Nothing Studied --------- None Alien Tech Used ----------------- None Achievements -------------- Strength In Numbers Challenges ------------ None Game ------ Seed LaserAssembledBay Manual? 0 Play Time 00:19:21 Cumulative 138.4 hours Start 2025.12.01 @ 16:30:50 End 2025.12.01 @ 16:50:15 Sessions 1 Manual Loads 0 Difficulty Rogue Special Mode None Game No. 73 Rogue 73 Adventurer 0 Explorer 0 Win Type - Total 1 Types 1/0/0/0/0/0/0/0/0/0 Lore% 63 Gallery% 60 Achievement% 48 Wizard Run 0 Options --------- Layout 1 ASCII 0 Keyboard 0 Movement Mouse Keybinds 0 Fullscreen 2 Font 32/SmallcapsGlow Map View 50x35 Zoom Use 0% Tactical HUD 1 Map Filters NONE Filters NONE Steam 1 RUN: 0c54561c-0c2b-46bd-8ce5-e34864cdcfa6